fUST/lending_fUST_20251030
["ID","MTS","AMOUNT","RATE_DAILY","PERIOD"]
[392656700,1761785630013,-403.72361849,0.00029282,2]
[392656701,1761785630044,-293.7,0.00029283,10]
[392656702,1761785630071,-480.4710556,0.00029286,2]
[392656703,1761785651216,-300.0,0.00029287,2]
[392656704,1761785663691,259.35113048,0.0002589,2]
[392656705,1761785664069,306.03433397,0.0002789,2]
[392656706,1761785664947,500.0,0.00029281,4]
[392656707,1761785665197,500.0,0.00029286,4]
[392656708,1761785665926,3934.2547166,0.00028288,2]
[392656709,1761785683417,-500.0,0.00029288,2]
[392656710,1761785683446,-500.0,0.00029288,2]
[392656711,1761785683474,-500.0,0.00029288,2]
[392656712,1761785683499,-500.0,0.00029288,2]
[392656713,1761785683530,-500.0,0.00029288,2]
[392656714,1761785683556,-178.95135915,0.00029288,2]
[392656715,1761785683583,-500.0,0.00029288,2]
[392656716,1761785683610,-598.1947114,0.00029288,2]
[392656717,1761785683635,-616.90996614,0.00029288,2]
[392656718,1761785683661,-500.0,0.00029288,2]
[392656719,1761785683765,-500.0,0.00029288,2]
[392656720,1761785683795,-454.83129473,0.00029288,2]
[392656721,1761785683824,-500.0,0.00029288,2]
[392656722,1761785683851,-500.0,0.00029288,2]
[392656723,1761785683879,-500.0,0.00029288,2]
[392656724,1761785683907,-500.0,0.00029288,2]
[392656725,1761785683935,-500.0,0.00029288,2]
[392656726,1761785683963,-500.0,0.00029288,2]
[392656727,1761785683992,-500.0,0.00029288,2]
[392656728,1761785684021,-500.0,0.00029288,2]
[392656729,1761785686514,-500.0,0.00029288,2]
[392656730,1761785686547,-500.0,0.00029288,2]
[392656731,1761785686573,-500.0,0.00029288,2]
[392656732,1761785686600,-500.0,0.00029288,2]
[392656733,1761785686627,-500.0,0.00029288,2]
[392656734,1761785686653,-500.0,0.00029288,2]
[392656735,1761785686680,-500.0,0.00029288,2]
[392656736,1761785686711,-500.0,0.00029288,2]
[392656737,1761785686744,-500.0,0.00029288,2]
[392656738,1761785686774,-500.0,0.00029288,2]
[392656739,1761785689413,-500.0,0.00029288,2]
[392656740,1761785689442,-500.0,0.00029288,2]
[392656741,1761785689472,-243.85909433,0.00029288,2]
[392656742,1761785689500,-264.48323572,0.00029288,2]
[392656743,1761785689538,-500.0,0.00029288,2]
[392656744,1761785689574,-500.0,0.00029288,2]
[392656745,1761785689602,-500.0,0.00029288,2]
[392656746,1761785689627,-500.0,0.00029288,2]
[392656747,1761785689655,-500.0,0.00029288,2]
[392656748,1761785689686,-452.0,0.00029288,22]
[392656749,1761785689718,-166.66,0.00029288,14]
[392656750,1761785689747,-246.0053399,0.00029288,4]
[392656751,1761785692532,-253.9946601,0.00029288,4]
[392656752,1761785692558,-500.0,0.00029288,4]
[392656753,1761785692586,-3492.0206798,0.00029289,2]
[392656754,1761785695537,-1507.9793202,0.00029289,2]
[392656755,1761785695609,-3302.37766995,0.00029289,2]
[392656756,1761785700512,150.0,0.00012365,30]
[392656757,1761785700874,150.0,0.00013489,30]
[392656758,1761785701510,-10000.01,0.00029289,2]
[392656759,1761785710898,5000.0,0.00025205,2]
[392656760,1761785733450,5000.0,0.00025205,2]
[392656762,1761785905773,0.01,0.00012506,30]
[392656763,1761785905797,149.99,0.00012506,30]
[392656764,1761785906206,150.0,0.00013643,30]
[392656765,1761785906660,150.0,0.00014779,30]
[392656766,1761785978233,150.0,0.00012921,30]
[392656767,1761785980643,180.00180002,0.00024378,2]
[392656768,1761785994180,206.17,0.00030137,120]
[392656769,1761786047562,150.0,0.00012985,30]
[392656772,1761786230810,-318.84031435,0.00025395,2]
[392656773,1761786230838,-200.0,0.00025395,2]
[392656774,1761786230867,-252.1,0.00025587,3]
[392656775,1761786230896,-252.1,0.00026474,3]
[392656776,1761786230924,-161.25978237,0.00026591,5]
[392656777,1761786230950,-166.80209885,0.00026591,5]
[392656778,1761786230979,-252.1,0.00027361,4]
[392656779,1761786231008,-2409.60560886,0.00027394,2]
[392656780,1761786236791,-1974.39439114,0.00027394,2]
[392656781,1761786236819,-376.23157093,0.00027395,2]
[392656782,1761786236849,-300.0,0.00027849,2]
[392656783,1761786236878,-160.0,0.0002785,2]
[392656784,1761786236910,-205.79867159,0.00028187,2]
[392656785,1761786236940,-252.1,0.00028248,4]
[392656786,1761786236968,-380.0,0.00028287,2]
[392656787,1761786236996,-260.0,0.00028398,2]
[392656788,1761786239785,-3341.90534145,0.0002885,2]
[392656789,1761786242927,-10000.01,0.0002885,2]
[392656790,1761786245889,-10000.01,0.0002885,2]
[392656791,1761786246162,-10000.01,0.0002885,2]
[392656792,1761786246277,-10000.01,0.0002885,2]
[392656793,1761786246402,-10000.01,0.0002885,2]
[392656794,1761786251777,-10000.01,0.0002885,2]
[392656795,1761786254806,-692.17870753,0.00028554,2]
[392656796,1761786254842,-8615.65258494,0.0002885,2]
[392656797,1761786255072,-10000.01,0.0002885,2]
[392656798,1761786255234,-10000.01,0.0002885,2]
[392656799,1761786255327,-10000.01,0.0002885,2]
[392656800,1761786257946,-10000.01,0.0002885,2]
[392656801,1761786263848,-10000.01,0.0002885,2]
[392656802,1761786263968,-10000.01,0.0002885,2]
[392656803,1761786264073,-10000.01,0.0002885,2]
[392656804,1761786264195,-10000.01,0.0002885,2]
[392656805,1761786277200,168.956402,0.00025205,2]
[392656806,1761786285159,300.0,0.00025205,2]
[392656807,1761786293244,3253.96340367,0.00025205,2]
[392656808,1761786308839,2161.23976092,0.00025205,2]
[392656809,1761786309911,1200.0,0.00025204,2]
[392656811,1761786317314,2915.85043341,0.00025205,2]
[392656812,1761786317338,1322.91980567,0.00025205,2]
[392656814,1761786323611,300.0,0.000252,2]
[392656816,1761786334096,300.0,0.000252,2]
[392656817,1761786344418,300.0,0.000252,2]
[392656818,1761786354033,-7777.09019433,0.00025205,2]
[392656819,1761786354120,-4821.80980567,0.00025205,2]
[392656820,1761786355801,300.0,0.000252,2]
[392656821,1761786367005,56.39038866,0.000252,2]
[392656822,1761786367027,243.60961134,0.000252,2]
[392656824,1761786378200,300.0,0.000252,2]
[392656825,1761786385329,300.0,0.000252,2]
[392656826,1761786389397,300.0,0.000252,2]
[392656827,1761786394555,150.0,0.00012401,30]
[392656828,1761786438153,-342.56717301,0.0002525,2]
[392656829,1761786438173,-205.79867159,0.00025295,2]
[392656830,1761786438194,-500.0,0.000253,2]
[392656831,1761786438213,-221.3,0.00025603,3]
[392656832,1761786438232,-163.62481893,0.00026396,2]
[392656833,1761786438251,-221.3,0.00026489,3]
[392656834,1761786438271,-1492.244499,0.00027045,2]
[392656835,1761786438293,-404.22926415,0.0002725,2]
[392656836,1761786438312,-221.3,0.00027374,4]
[392656837,1761786438332,-1680.0,0.00027422,2]
[392656838,1761786438353,-152.27241672,0.00028096,2]
[392656839,1761786438372,-221.3,0.0002826,4]
[392656840,1761786438391,-315.77526585,0.00028706,22]
[392656841,1761786438411,-268.2285184,0.00028838,2]
[392656842,1761786438436,-2726.32398333,0.0002885,2]
[392656843,1761786446087,-487.81778976,0.0002885,2]
[392656848,1761786463209,150.0,0.000125,30]
[392656853,1761786626226,332.77842757,0.0002589,2]
[392656861,1761786631864,-325.0,0.0002789,2]
[392656867,1761786631919,-67.67854454,0.0002789,2]
[392656869,1761786631928,-200.062548,0.00027931,60]
[392656871,1761786631938,-160.0,0.00028462,2]
[392656873,1761786631947,-1200.0,0.0002847,2]
[392656875,1761786631957,-4138.86448205,0.00028471,2]
[392656878,1761786631969,-827.61705615,0.00028471,2]
[392656880,1761786631980,-333.42650201,0.00028554,2]
[392656882,1761786631991,-30.09235703,0.00028554,2]
[392656884,1761786632000,-2044.77862079,0.0002885,2]
[392656906,1761786637752,-9060.56375791,0.0002885,2]
[392656907,1761786637764,-12623.04190828,0.0002885,2]
[392656908,1761786637775,-310.24602,0.0002885,2]
[392656909,1761786637806,-2406.42254548,0.0002885,2]
[392656914,1761786639905,-6952.4229472,0.0002885,2]
[392656915,1761786639959,-8643.50461264,0.0002885,2]
[392656917,1761786643084,-8490.30288965,0.0002885,2]
[392656920,1761786643096,-1105.0,0.0002885,2]
[392656923,1761786643107,-4972.09480696,0.0002885,2]
[392656926,1761786646012,-251.53964314,0.0002885,2]
[392656930,1761786646129,-724.11173951,0.0002885,2]
[392656931,1761786686659,185.3,0.00026509,3]
[392656932,1761786686955,185.3,0.00025625,3]
[392656938,1761786796514,2000.0,0.00029479,120]
[392656940,1761786879555,179.67658215,0.00024378,2]
[392656943,1761787154874,150.0,0.00013071,30]
[392656947,1761787293468,-362.04655073,0.00025419,2]
[392656948,1761787293500,-217.3,0.00025633,3]
[392656949,1761787293528,-169.43549047,0.0002579,2]
[392656950,1761787293560,-217.3,0.00026516,3]
[392656951,1761787293591,-1200.0,0.00026749,2]
[392656952,1761787293620,-300.0,0.00026749,2]
[392656953,1761787293864,-2963.81042713,0.0002675,2]
[392656954,1761787293900,-4774.50384573,0.0002675,2]
[392656955,1761787293932,-451.00230854,0.0002675,2]
[392656956,1761787293960,-2069.579058,0.0002712,2]
[392656957,1761787293986,-200.0,0.00027361,15]
[392656958,1761787294020,-217.3,0.00027399,4]
[392656959,1761787294048,-427.21492986,0.00027419,2]
[392656960,1761787294077,-887.737801,0.00027614,2]
[392656961,1761787294106,-168.0,0.00027757,2]
[392656962,1761787294328,-283.00230854,0.0002799,2]
[392656963,1761787294341,-168.0,0.0002799,2]
[392656964,1761787294358,-1158.3418052,0.0002799,2]
[392656965,1761787294371,-10000.01,0.0002799,2]
[392656966,1761787294399,-10000.01,0.0002799,2]
[392656967,1761787294421,-5141.95395056,0.0002799,2]
[392656968,1761787294431,-168.0,0.00028008,2]
[392656969,1761787294446,-2004.0,0.00028066,2]
[392656970,1761787294459,-168.0,0.00028148,2]
[392656971,1761787294469,-2004.0,0.00028199,7]
[392656972,1761787294478,-217.3,0.00028281,4]
[392656973,1761787294487,-168.0,0.00028393,7]
[392656974,1761787294496,-128.75604944,0.00028403,2]
[392656975,1761787296608,-39.24395056,0.00028403,2]
[392656976,1761787296638,-168.0,0.00028464,7]
[392656977,1761787296667,-168.0,0.00028475,2]
[392656978,1761787296693,-300.0,0.00028519,2]
[392656979,1761787296718,-300.0,0.00028519,2]
[392656980,1761787296743,-300.0,0.00028519,2]
[392656981,1761787296770,-1200.0,0.0002852,2]
[392656982,1761787296798,-500.0,0.00028522,4]
[392656983,1761787296826,-500.0,0.00028522,4]
[392656984,1761787296854,-500.0,0.00028522,4]
[392656985,1761787296882,-500.0,0.00028522,4]
[392656986,1761787296909,-500.0,0.00028522,4]
[392656987,1761787297007,-500.0,0.00028522,4]
[392656988,1761787297037,-500.0,0.00028522,4]
[392656989,1761787297068,-500.0,0.00028522,4]
[392656990,1761787297096,-500.0,0.00028522,4]
[392656991,1761787297124,-500.0,0.00028522,4]
[392656992,1761787297153,-500.0,0.00028522,4]
[392656993,1761787297190,-500.0,0.00028522,4]
[392656994,1761787297224,-500.0,0.00028522,4]
[392656995,1761787297253,-500.0,0.00028522,4]
[392656996,1761787297282,-500.0,0.00028522,4]
[392656997,1761787297574,-49.52209888,0.00028522,4]
[392656998,1761787297593,-0.01,0.00028522,4]
[392656999,1761787299282,-450.46790112,0.00028522,4]
[392657000,1761787299309,-500.0,0.00028522,4]
[392657001,1761787299335,-500.0,0.00028522,4]
[392657002,1761787299361,-500.0,0.00028522,4]
[392657003,1761787299388,-500.0,0.00028522,4]
[392657004,1761787299416,-500.0,0.00028522,4]
[392657005,1761787299443,-500.0,0.00028522,4]
[392657006,1761787299471,-500.0,0.00028522,4]
[392657007,1761787299498,-500.0,0.00028522,4]
[392657008,1761787299525,-500.0,0.00028522,4]
[392657009,1761787299747,-500.0,0.00028522,4]
[392657010,1761787299777,-500.0,0.00028522,4]
[392657011,1761787299804,-500.0,0.00028522,4]
[392657012,1761787299832,-500.0,0.00028522,4]
[392657013,1761787299859,-500.0,0.00028522,4]
[392657014,1761787299887,-500.0,0.00028522,4]
[392657015,1761787299914,-630.74594951,0.00028522,4]
[392657016,1761787300025,-4136.1990212,0.00028523,2]
[392657017,1761787300080,-1727.6119576,0.00028523,2]
[392657018,1761787300109,-243.2338726,0.00028523,2]
[392657019,1761787300138,-500.0,0.00028573,5]
[392657020,1761787300165,-500.1275459,0.00028573,5]
[392657021,1761787300191,-334.75001066,0.00028573,5]
[392657022,1761787300219,-482.56,0.00028576,10]
[392657023,1761787300249,-402.13,0.00028576,10]
[392657024,1761787300277,-335.11,0.00028576,10]
[392657025,1761787300308,-448.96322648,0.00028586,2]
[392657026,1761787300449,-51.03677352,0.00028586,2]
[392657027,1761787300477,-500.0,0.00028586,2]
[392657028,1761787300504,-500.0,0.00028586,2]
[392657029,1761787300531,-500.0,0.00028586,2]
[392657030,1761787300559,-500.0,0.00028586,2]
[392657031,1761787300590,-500.0,0.00028586,2]
[392657032,1761787300617,-500.0,0.00028586,2]
[392657033,1761787300646,-500.0,0.00028586,2]
[392657034,1761787300676,-500.0,0.00028586,2]
[392657035,1761787300702,-500.0,0.00028586,2]
[392657036,1761787300731,-397.93645296,0.00028586,2]
[392657037,1761787301197,-102.06354704,0.00028586,2]
[392657038,1761787301206,-116.24102986,0.00028586,2]
[392657039,1761787301219,-383.75897014,0.00028586,2]
[392657040,1761787301228,-116.24102986,0.00028586,2]
[392657041,1761787301242,-440.75801176,0.00028586,2]
[392657042,1761787301250,-59.24198824,0.00028586,2]
[392657043,1761787301264,-440.75801176,0.00028586,2]
[392657044,1761787301272,-59.24198824,0.00028586,2]
[392657045,1761787301289,-440.75801176,0.00028586,2]
[392657046,1761787301298,-59.24198824,0.00028586,2]
[392657047,1761787301312,-400.62722597,0.00028586,2]
[392657048,1761787301321,-99.37277403,0.00028586,2]
[392657049,1761787301335,-400.62722597,0.00028586,2]
[392657050,1761787301344,-99.37277403,0.00028586,2]
[392657051,1761787301358,-400.62722597,0.00028586,2]
[392657052,1761787301367,-99.37277403,0.00028586,2]
[392657053,1761787301384,-400.62722597,0.00028586,2]
[392657054,1761787301393,-99.37277403,0.00028586,2]
[392657055,1761787301407,-400.62722597,0.00028586,2]
[392657056,1761787301416,-99.37277403,0.00028586,2]
[392657058,1761787340339,159.85835519,0.000137,2]
[392657061,1761787423469,-184.507,0.00027757,17]
[392657062,1761787423495,-582.734,0.00027847,17]
[392657063,1761787423524,-262.5216464,0.00027973,5]
[392657064,1761787423551,-1200.0,0.00028521,2]
[392657065,1761787423576,-300.0,0.00028521,2]
[392657066,1761787423605,-500.0,0.00028522,4]
[392657067,1761787423636,-609.89708862,0.00028522,4]
[392657068,1761787423665,-606.56,0.00028522,4]
[392657069,1761787423693,-500.0,0.00028522,4]
[392657070,1761787423721,-7.57052996,0.00028522,4]
[392657071,1761787423916,-492.42947004,0.00028522,4]
[392657072,1761787423943,-500.0,0.00028522,4]
[392657073,1761787423969,-500.0,0.00028522,4]
[392657074,1761787423996,-500.0,0.00028522,4]
[392657075,1761787424026,-500.0,0.00028522,4]
[392657076,1761787424056,-500.0,0.00028522,4]
[392657077,1761787424084,-500.0,0.00028522,4]
[392657078,1761787424112,-500.0,0.00028522,4]
[392657079,1761787424139,-500.0,0.00028522,4]
[392657080,1761787424168,-500.0,0.00028522,4]
[392657081,1761787424270,-500.0,0.00028522,4]
[392657082,1761787424299,-500.0,0.00028522,4]
[392657083,1761787424328,-500.0,0.00028522,4]
[392657084,1761787424357,-500.0,0.00028522,4]
[392657085,1761787424386,-500.0,0.00028522,4]
[392657086,1761787424412,-500.0,0.00028522,4]
[392657087,1761787424439,-500.0,0.00028522,4]
[392657088,1761787424465,-500.0,0.00028522,4]
[392657089,1761787424491,-500.0,0.00028522,4]
[392657090,1761787424518,-500.0,0.00028522,4]
[392657091,1761787424693,-500.0,0.00028522,4]
[392657092,1761787424726,-500.0,0.00028522,4]
[392657093,1761787424760,-500.0,0.00028522,4]
[392657094,1761787424793,-500.0,0.00028522,4]
[392657095,1761787424827,-500.0,0.00028522,4]
[392657096,1761787424860,-500.0,0.00028522,4]
[392657097,1761787424890,-500.0,0.00028522,4]
[392657098,1761787424923,-500.0,0.00028522,4]
[392657099,1761787424972,-500.0,0.00028522,4]
[392657100,1761787425013,-500.0,0.00028522,4]
[392657101,1761787425648,-355.30270473,0.00028522,4]
[392657102,1761787425667,-0.01,0.00028522,4]
[392657103,1761787426367,-144.68729527,0.00028522,4]
[392657104,1761787426399,-500.0,0.00028522,4]
[392657105,1761787426433,-500.0,0.00028522,4]
[392657106,1761787426467,-500.0,0.00028522,4]
[392657107,1761787426638,-500.0,0.00028522,4]
[392657108,1761787426668,-500.0,0.00028522,4]
[392657109,1761787426696,-500.0,0.00028522,4]
[392657110,1761787426723,-500.0,0.00028522,4]
[392657111,1761787426750,-500.0,0.00028522,4]
[392657112,1761787426776,-584.03481793,0.00028522,4]
[392657113,1761787426802,-42.5657736,0.00028522,4]
[392657114,1761787426874,-457.4342264,0.00028522,4]
[392657115,1761787426901,-500.0,0.00028522,4]
[392657116,1761787426929,-500.0,0.00028522,4]
[392657117,1761787426956,-500.0,0.00028522,4]
[392657118,1761787426982,-500.0,0.00028522,4]
[392657119,1761787427008,-500.0,0.00028522,4]
[392657120,1761787427036,-500.0,0.00028522,4]
[392657121,1761787427062,-500.0,0.00028522,4]
[392657122,1761787427089,-500.0,0.00028522,4]
[392657123,1761787427116,-500.0,0.00028522,4]
[392657124,1761787427370,-500.0,0.00028522,4]
[392657125,1761787427383,-85.1415472,0.00028522,4]
[392657126,1761787429365,-414.8584528,0.00028522,4]
[392657127,1761787429392,-566.92,0.00028522,4]
[392657128,1761787429418,-500.0,0.00028522,4]
[392657129,1761787429445,-500.0,0.00028522,4]
[392657130,1761787429471,-322.112239,0.00028522,4]
[392657131,1761787429496,-500.0,0.00028522,4]
[392657132,1761787429523,-500.0,0.00028522,4]
[392657133,1761787429549,-500.0,0.00028522,4]
[392657134,1761787429574,-277.78,0.00028522,14]
[392657135,1761787429600,-507.02669006,0.00028522,4]
[392657136,1761787429632,-322.61523628,0.00028522,4]
[392657137,1761787429740,-177.38476372,0.00028522,4]
[392657138,1761787429769,-500.0,0.00028522,4]
[392657139,1761787429798,-500.0,0.00028522,4]
[392657140,1761787429826,-500.0,0.00028522,4]
[392657141,1761787429854,-500.0,0.00028522,4]
[392657142,1761787429881,-500.0,0.00028522,4]
[392657143,1761787429909,-500.0,0.00028522,4]
[392657144,1761787429937,-500.0,0.00028522,4]
[392657145,1761787429965,-500.0,0.00028522,4]
[392657146,1761787429991,-500.0,0.00028522,4]
[392657147,1761787430020,-145.24047256,0.00028522,4]
[392657148,1761787430120,-354.75952744,0.00028522,4]
[392657149,1761787430146,-500.0,0.00028522,4]
[392657150,1761787430173,-500.0,0.00028522,4]
[392657151,1761787430200,-500.0,0.00028522,4]
[392657152,1761787430228,-500.0,0.00028522,4]
[392657153,1761787430255,-500.0,0.00028573,5]
[392657154,1761787430283,-500.0,0.00028573,5]
[392657155,1761787430309,-500.0,0.00028573,5]
[392657156,1761787430335,-500.0,0.00028573,5]
[392657157,1761787430361,-500.0,0.00028573,5]
[392657158,1761787430698,-32.14429116,0.00028573,5]
[392657159,1761787430711,-467.85570884,0.00028573,5]
[392657174,1761787553135,-205.83530187,0.00028422,2]
[392657175,1761787553156,-522.98482181,0.00028422,2]
[392657176,1761787553177,-152.0,0.0002852,2]
[392657177,1761787553199,-272.05881555,0.0002852,2]
[392657178,1761787553377,-27.94118445,0.0002852,2]
[392657179,1761787553406,-201.0,0.0002852,2]
[392657180,1761787553435,-300.0,0.0002852,2]
[392657181,1761787553463,-1200.0,0.0002852,2]
[392657182,1761787553490,-500.0,0.00028521,4]
[392657183,1761787553517,-500.0,0.00028521,4]
[392657184,1761787553545,-500.0,0.00028521,4]
[392657185,1761787553572,-500.0,0.00028521,4]
[392657186,1761787553737,-500.0,0.00028521,4]
[392657187,1761787553776,-500.0,0.00028521,4]
[392657188,1761787553808,-42.1276311,0.00028521,4]
[392657189,1761787553977,-457.8723689,0.00028521,4]
[392657190,1761787554007,-500.0,0.00028521,4]
[392657191,1761787554037,-500.0,0.00028521,4]
[392657192,1761787554065,-500.0,0.00028521,4]
[392657193,1761787554095,-500.0,0.00028521,4]
[392657194,1761787554125,-441.08,0.00028521,4]
[392657195,1761787554156,-500.0,0.00028521,4]
[392657196,1761787554187,-500.0,0.00028521,4]
[392657197,1761787554216,-500.0,0.00028522,4]
[392657198,1761787554245,-500.0,0.00028522,4]
[392657199,1761787554302,-500.0,0.00028522,4]
[392657200,1761787554330,-500.0,0.00028522,4]
[392657201,1761787554357,-500.0,0.00028522,4]
[392657202,1761787554384,-500.0,0.00028522,4]
[392657203,1761787554411,-500.0,0.00028522,4]
[392657204,1761787554438,-500.0,0.00028522,4]
[392657205,1761787554466,-500.0,0.00028522,4]
[392657206,1761787554492,-500.0,0.00028522,4]
[392657207,1761787554518,-500.0,0.00028522,4]
[392657208,1761787554545,-500.0,0.00028522,4]
[392657209,1761787554896,-202.1052622,0.00028522,4]
[392657210,1761787554911,-297.8947378,0.00028522,4]
[392657211,1761787554920,-202.1052622,0.00028522,4]
[392657212,1761787554934,-0.01,0.00028522,4]
[392657213,1761787556266,-297.8847378,0.00028522,4]
[392657214,1761787556295,-500.0,0.00028522,4]
[392657215,1761787556323,-500.0,0.00028522,4]
[392657216,1761787556352,-500.0,0.00028522,4]
[392657217,1761787556386,-500.0,0.00028522,4]
[392657218,1761787556417,-500.0,0.00028522,4]
[392657219,1761787556447,-500.0,0.00028522,4]
[392657220,1761787556476,-500.0,0.00028522,4]
[392657221,1761787556503,-500.0,0.00028522,4]
[392657222,1761787556531,-500.0,0.00028522,4]
[392657223,1761787556721,-404.2405244,0.00028522,4]
[392657224,1761787559336,-500.0,0.00028521,4]
[392657225,1761787559365,-95.7594756,0.00028522,4]
[392657226,1761787559393,-500.0,0.00028522,4]
[392657227,1761787559420,-504.72630997,0.00028522,4]
[392657228,1761787559447,-526.4,0.00028522,3]
[392657229,1761787559474,-500.0,0.00028522,4]
[392657230,1761787559501,-500.0,0.00028522,4]
[392657231,1761787559528,-500.0,0.00028522,4]
[392657232,1761787559555,-549.72,0.00028522,4]
[392657233,1761787559583,-500.0,0.00028522,4]
[392657234,1761787559609,-146.79842886,0.00028522,4]
[392657235,1761787559742,-353.20157114,0.00028522,4]
[392657236,1761787559770,-500.0,0.00028522,4]
[392657237,1761787559902,-500.0,0.00028522,4]
[392657238,1761787559931,-500.0,0.00028522,4]
[392657239,1761787559959,-500.0,0.00028522,4]
[392657240,1761787559985,-500.0,0.00028522,4]
[392657241,1761787560013,-500.0,0.00028522,4]
[392657242,1761787560041,-500.0,0.00028522,4]
[392657243,1761787560070,-500.0,0.00028522,4]
[392657244,1761787560098,-500.0,0.00028522,4]
[392657245,1761787560194,-500.0,0.00028522,4]
[392657246,1761787560223,-578.81,0.00028522,4]
[392657247,1761787560251,-500.0,0.00028522,4]
[392657248,1761787560278,-500.0,0.00028522,4]
[392657249,1761787560304,-500.0,0.00028522,4]
[392657250,1761787560331,-500.0,0.00028522,4]
[392657251,1761787560357,-500.0,0.00028522,4]
[392657252,1761787560384,-500.0,0.00028522,4]
[392657253,1761787560412,-500.0,0.00028522,4]
[392657254,1761787560440,-342.39,0.00028522,4]
[392657255,1761787560821,-157.61,0.00028522,4]
[392657256,1761787560831,-146.80842886,0.00028522,4]
[392657257,1761787560845,-447.39157114,0.00028522,4]
[392657258,1761787560854,-52.60842886,0.00028522,4]
[392657260,1761787635087,-157.5,0.00025637,3]
[392657261,1761787635110,-363.57564302,0.0002589,2]
[392657262,1761787635134,-157.5,0.00026519,3]
[392657263,1761787635156,-157.5,0.00027402,4]
[392657264,1761787635177,-429.01925877,0.0002789,2]
[392657265,1761787635197,-157.5,0.00028284,4]
[392657266,1761787635218,-300.0,0.0002852,2]
[392657267,1761787635238,-500.0,0.00028521,4]
[392657268,1761787635257,-568.67,0.00028521,4]
[392657269,1761787635277,-500.0,0.00028521,4]
[392657270,1761787635296,-538.0,0.00028521,4]
[392657271,1761787635317,-500.0,0.00028521,4]
[392657272,1761787635336,-389.54,0.00028521,4]
[392657273,1761787635356,-500.0,0.00028521,4]
[392657274,1761787635375,-500.0,0.00028521,4]
[392657275,1761787635395,-500.0,0.00028521,2]
[392657276,1761787635414,-500.0,0.00028521,2]
[392657277,1761787635434,-500.0,0.00028521,2]
[392657278,1761787635456,-500.0,0.00028521,2]
[392657279,1761787635476,-500.0,0.00028521,2]
[392657280,1761787635496,-500.0,0.00028521,2]
[392657281,1761787635515,-500.0,0.00028521,2]
[392657282,1761787635535,-500.0,0.00028521,2]
[392657283,1761787635555,-605.64404393,0.00028521,2]
[392657284,1761787635575,-500.0,0.00028521,2]
[392657285,1761787635593,-500.0,0.00028521,2]
[392657286,1761787635613,-226.11797562,0.00028521,2]
[392657287,1761787635632,-454.71787194,0.00028521,2]
[392657288,1761787635651,-172.99989351,0.00028521,2]
[392657289,1761787635675,-500.0,0.00028521,2]
[392657290,1761787635696,-500.0,0.00028521,2]
[392657291,1761787635719,-500.0,0.00028521,2]
[392657292,1761787635739,-143.31881394,0.00028521,2]
[392657294,1761787640180,-356.68118606,0.00028521,2]
[392657295,1761787640202,-500.0,0.00028521,2]
[392657296,1761787640223,-216.50992567,0.00028521,2]
[392657299,1761787683543,-300.0,0.00028519,2]
[392657300,1761787683575,-500.0,0.0002852,4]
[392657301,1761787683606,-500.0,0.0002852,4]
[392657302,1761787683636,-500.0,0.0002852,4]